bitfinex/quotes_SOLUSD_20250924
["timestamp","ask_amount","ask_price","bid_price","bid_amount"]
[1758730455005,1.17042277,213.84,213.79,4.67748725]
[1758730455208,37.62,213.83,213.78,5.38769313]
[1758730455397,42.93586793,213.83,213.76,18.91146194]
[1758730455598,43.60586793,213.83,213.76,9.99379612]
[1758730456029,5.31586793,213.82,213.76,4.67792819]
[1758730456206,5.98586793,213.82,213.76,4.67792819]
[1758730456420,1.17097442,213.81,213.76,4.67792819]
[1758730456726,7.15684235,213.81,213.76,4.67792819]
[1758730457029,6.48696356,213.8,213.75,0.71]
[1758730457231,38.77109563,213.79,213.75,0.71]
[1758730457530,5.31586793,213.78,213.72,13.59559401]
[1758730457839,38.27,213.79,213.72,19.62146194]
[1758730457992,43.58586793,213.79,213.72,6.02586793]
[1758730458197,6.48700317,213.78,213.72,10.7048872]
[1758730458401,1.84119224,213.77,213.67,0.71]
[1758730458728,38.77119224,213.76,213.71,5.31586793]
[1758730458908,1.17119224,213.75,213.71,5.31586793]
[1758730459622,37.6,213.76,213.71,5.31586793]
[1758730459813,1.1712881,213.75,213.71,5.31586793]
[1758730460123,37.6,213.76,213.71,5.31586793]
[1758730460326,37.6,213.75,213.74,5.31586793]
[1758730460745,26.0,213.82,213.75,29.96986301]
[1758730460915,37.6,213.86,213.81,5.31586793]
[1758730461103,30.5,213.87,213.83,5.31586793]
[1758730461303,8.51366099,213.95,213.78,0.72]
[1758730461304,39.49076664,213.86,213.78,0.72]
[1758730461503,39.49076664,213.86,213.75,16.374269]
[1758730461504,5.31586793,213.84,213.76,13.59559401]
[1758730461810,1.87076664,213.83,213.79,5.31586793]
[1758730462128,0.7,213.83,213.79,5.31586793]
[1758730462505,1.87091274,213.83,213.8,4.67726847]
[1758730462710,0.7,213.83,213.8,4.67726847]
[1758730464241,1.17089988,213.85,213.8,4.67726847]
[1758730464415,0.7,213.84,213.8,4.67726847]
[1758730464828,1.17089988,213.85,213.8,4.67726847]
[1758730465011,26.0,213.78,213.72,0.72]
[1758730465217,38.7311516,213.77,213.73,5.31586793]
[1758730465441,37.56,213.77,213.73,5.31586793]
[1758730465617,37.56,213.77,213.73,6.03586793]
[1758730466135,16.36669095,213.85,213.7,16.3780709]
[1758730466136,0.7,213.86,213.76,5.31586793]
[1758730466335,0.7,213.86,213.79,5.31586793]
[1758730466336,172.22,213.85,213.79,5.31586793]
[1758730466538,1.17111014,213.84,213.78,5.31586793]
[1758730466734,135.77111014,213.84,213.79,4.67748725]
[1758730467039,1.17111014,213.83,213.79,4.67748725]
[1758730467214,6.48697807,213.83,213.77,4.67774128]
[1758730467419,1.17111014,213.82,213.77,4.67774128]
[1758730467618,1.17111014,213.82,213.67,37.62]
[1758730467619,43.63586793,213.81,213.73,13.59559401]
[1758730467836,43.63586793,213.81,213.75,5.31586793]
[1758730468022,38.32,213.81,213.75,5.31586793]
[1758730468838,38.32,213.81,213.76,4.67814371]
[1758730469040,38.32,213.81,213.76,9.99401164]
[1758730470124,0.7,213.8,213.76,4.67814371]
[1758730470417,37.62,213.81,213.76,9.99401164]
[1758730470626,38.32,213.81,213.77,7.93419733]
[1758730470828,38.32,213.81,213.77,12.61196396]
[1758730471116,37.58,213.83,213.8,7.93419733]
[1758730471446,37.58,213.83,213.81,7.93419733]
[1758730472117,134.6,213.84,213.81,7.93419733]
[1758730472347,37.58,213.83,213.81,7.93419733]
[1758730472636,135.3,213.84,213.81,7.93419733]
[1758730472637,37.58,213.84,213.81,7.93419733]
[1758730472838,37.58,213.84,213.82,4.67683097]
[1758730473051,37.58,213.84,213.82,12.6110283]
[1758730473417,0.7,213.86,213.82,12.6110283]
[1758730473616,37.58,213.85,213.82,12.6110283]
[1758730473918,38.28,213.85,213.82,12.6110283]
[1758730474221,38.28,213.85,213.82,4.67683097]
[1758730474528,38.28,213.85,213.82,12.6110283]
[1758730475720,26.0,213.89,213.84,7.93419733]
[1758730475958,0.7,213.92,213.88,7.93419733]
[1758730476248,3.82060047,213.99,213.82,4.67683097]
[1758730476249,37.52,213.9,213.82,16.36890841]
[1758730476542,37.58,213.92,213.89,7.93419733]
[1758730476710,37.58,213.92,213.88,0.72]
[1758730477030,37.58,213.92,213.9,12.60916142]
[1758730477419,0.7,213.91,213.86,7.93419733]
[1758730477624,0.7,213.91,213.87,7.93419733]
[1758730478030,37.58,213.92,213.87,7.93419733]
[1758730478231,38.28,213.92,213.87,7.93419733]
[1758730478432,38.28,213.92,213.88,7.93419733]
[1758730478843,37.58,213.92,213.88,7.93419733]
[1758730479048,0.7,213.91,213.87,12.60981764]
[1758730479634,0.7,213.9,213.85,4.67600566]
[1758730479842,0.7,213.89,213.84,7.93419733]
[1758730480154,7.93419733,213.91,213.84,7.93419733]
[1758730480155,38.24,213.88,213.84,7.93419733]
[1758730480356,0.7,213.87,213.83,7.93419733]
[1758730480644,0.7,213.86,213.8,13.59559401]
[1758730480843,0.7,213.86,213.83,7.93419733]
[1758730481054,0.7,213.86,213.83,12.61073212]
[1758730481354,38.24,213.88,213.83,12.61073212]
[1758730481540,0.7,213.87,213.83,12.61073212]
[1758730483135,37.54,213.88,213.8,0.72]
[1758730483349,0.7,213.86,213.81,7.93419733]
[1758730483561,0.7,213.86,213.82,7.93419733]
[1758730483752,0.7,213.86,213.78,13.59559401]
[1758730483753,135.3,213.85,213.78,13.59559401]
[1758730483938,37.5,213.84,213.8,7.93419733]
[1758730484653,26.0,213.81,213.72,0.72]
[1758730484844,37.5,213.8,213.75,7.93419733]
[1758730485152,0.7,213.79,213.74,4.67858145]
[1758730485353,37.5,213.8,213.75,7.93419733]
[1758730485354,38.2,213.8,213.75,7.93419733]
[1758730485557,0.7,213.83,213.76,8.65419733]
[1758730485726,0.7,213.83,213.77,7.93419733]
[1758730485727,37.52,213.82,213.77,7.93419733]
[1758730485932,38.22,213.82,213.77,7.93419733]
[1758730486740,38.22,213.82,213.76,8.65419733]
[1758730487462,38.22,213.82,213.77,4.67792487]
[1758730488840,38.22,213.82,213.77,12.6121222]
[1758730489046,0.7,213.81,213.77,4.67792487]
[1758730489565,0.7,213.8,213.76,4.67812066]
[1758730490337,0.7,213.8,213.76,12.61231799]
[1758730492355,1.8709749,213.8,213.76,12.61231799]
[1758730492558,1.1709749,213.79,213.76,12.61231799]
[1758730492861,0.7,213.8,213.76,12.61231799]
[1758730493067,0.71,213.8,213.76,7.93419733]
[1758730493251,38.65097504,213.79,213.76,12.61232923]
[1758730493562,37.46,213.79,213.76,12.61232923]
[1758730494363,37.46,213.79,213.77,7.93419733]
[1758730494748,37.46,213.79,213.77,12.61198626]
[1758730495060,134.6,213.81,213.78,7.93419733]
[1758730495364,37.46,213.79,213.78,7.93419733]
[1758730495563,38.63093704,213.79,213.78,7.93419733]
[1758730496369,38.63093704,213.79,213.77,12.61198626]
[1758730496567,38.63093704,213.79,213.73,4.67862522]
[1758730496568,0.71,213.78,213.73,4.67862522]
[1758730496771,1.17095384,213.77,213.74,7.93419733]
[1758730496956,1.17095384,213.77,213.75,7.93419733]
[1758730498745,1.88095384,213.76,213.69,13.59559401]
[1758730498944,38.61095384,213.75,213.71,7.93419733]
[1758730499167,1.17095384,213.74,213.71,7.93419733]
[1758730499667,38.15,213.75,213.71,7.93419733]
[1758730499869,1.1712164,213.74,213.71,7.93419733]
[1758730500166,0.71,213.74,213.71,7.93419733]
[1758730500360,1.88122495,213.73,213.69,12.61387349]
[1758730500569,38.59122495,213.72,213.7,7.93419733]
[1758730500764,37.42,213.73,213.71,8.60419733]
[1758730501072,37.42,213.73,213.72,7.93419733]
[1758730501849,135.31,213.76,213.72,7.93419733]
[1758730502053,38.57120814,213.75,213.74,7.93419733]
[1758730502255,171.98,213.76,213.74,7.93419733]
[1758730502869,171.98,213.76,213.73,12.61285035]
[1758730503058,1.88115215,213.75,213.68,12.36927233]
[1758730503268,1.88115215,213.75,213.72,7.93419733]
[1758730503468,1.17115215,213.74,213.72,7.93419733]
[1758730504172,171.98,213.76,213.72,7.93419733]
[1758730504473,1.17121611,213.75,213.72,7.93419733]
[1758730504667,172.69,213.76,213.73,7.93419733]
[1758730504875,1.17119916,213.75,213.73,7.93419733]
[1758730505079,1.17119916,213.75,213.74,4.67858145]
[1758730505482,38.55119916,213.75,213.74,4.67858145]
[1758730505675,38.55114222,213.75,213.74,4.67858145]
[1758730505974,39.26114222,213.75,213.73,7.93419733]
[1758730506178,38.09,213.75,213.73,7.93419733]
[1758730506349,38.09,213.75,213.72,7.93419733]
[1758730506552,0.71,213.74,213.71,12.61340833]
[1758730507365,0.71,213.73,213.67,13.59559401]
[1758730507559,37.36,213.72,213.7,7.93419733]
[1758730507766,37.36,213.72,213.69,7.93419733]
[1758730507977,0.71,213.71,213.69,7.93419733]
[1758730508173,37.36,213.72,213.69,7.93419733]
[1758730508393,38.07,213.72,213.69,7.93419733]
[1758730508565,1.88138423,213.71,213.66,9.12476973]
[1758730508885,1.88138423,213.7,213.66,17.05896706]
[1758730509190,39.26138423,213.69,213.66,9.12476973]
[1758730509486,1.88156433,213.68,213.66,9.12476973]
[1758730509662,0.71,213.68,213.66,9.12476973]
[1758730509869,1.88156446,213.68,213.66,9.12476973]
[1758730510172,37.38,213.69,213.66,9.12476973]
[1758730510361,38.09,213.69,213.66,9.12476973]
[1758730510763,37.38,213.69,213.66,9.12476973]
[1758730510964,0.71,213.68,213.66,9.12476973]
[1758730511503,37.36,213.67,213.66,21.73927302]
[1758730511881,37.36,213.67,213.66,17.05896706]
[1758730512070,37.36,213.67,213.66,9.12476973]
[1758730512466,37.36,213.67,213.66,17.05896706]
[1758730512786,37.34,213.67,213.66,9.12476973]
[1758730513094,43.90178898,213.67,213.66,9.12476973]
[1758730513886,173.82167479,213.67,213.66,9.12476973]
[1758730514084,172.65,213.67,213.66,9.12476973]
[1758730514386,171.94,213.67,213.66,21.73930029]
[1758730514562,171.94,213.67,213.66,17.05896706]
[1758730514764,171.94,213.67,213.66,9.12476973]
[1758730514978,171.94,213.67,213.66,13.80510296]
[1758730515497,171.96,213.67,213.66,9.12476973]
[1758730516691,171.96,213.67,213.66,13.80510296]
[1758730517186,171.96,213.67,213.66,9.12476973]
[1758730517789,171.96,213.67,213.66,13.80510296]
[1758730517981,4.08812173,213.73,213.66,17.18322469]
[1758730518181,1.17170673,213.72,213.7,3.37812173]
[1758730518367,37.3,213.72,213.69,3.37812173]
[1758730518870,0.71,213.71,213.67,3.37812173]
[1758730519072,37.32,213.7,213.67,3.37812173]
[1758730519272,37.32,213.7,213.68,3.37812173]
[1758730519472,37.32,213.7,213.69,4.67967616]
[1758730520401,37.32,213.71,213.69,8.72779789]
[1758730520611,37.32,213.71,213.69,8.05779789]
[1758730520790,4.09812173,213.79,213.7,4.09812173]
[1758730520971,1.17125889,213.78,213.74,3.37812173]
[1758730521171,1.17125889,213.78,213.69,4.67967616]
[1758730521172,37.3,213.77,213.76,3.37812173]
[1758730521382,37.34,213.78,213.76,3.37812173]
[1758730521580,37.34,213.78,213.76,4.67796248]
[1758730521977,37.34,213.78,213.76,8.77608421]
[1758730522192,0.72,213.81,213.77,3.37812173]
[1758730522404,37.32,213.8,213.78,3.37812173]
[1758730523403,37.32,213.8,213.69,23.39838083]
[1758730523404,5.26918338,213.79,213.72,3.37812173]
[1758730523590,1.89106165,213.78,213.72,8.05697836]
[1758730523777,37.32,213.77,213.73,3.37812173]
[1758730523982,1.17106165,213.76,213.74,3.37812173]
[1758730524178,1.17106165,213.76,213.73,4.09812173]
[1758730524508,1.17106165,213.76,213.73,3.37812173]
[1758730525406,0.72,213.75,213.71,3.37812173]
[1758730525612,1.17106165,213.76,213.71,3.37812173]
[1758730525613,0.72,213.74,213.71,3.37812173]
[1758730526105,1.89106165,213.76,213.72,3.37812173]
[1758730526478,136.49106165,213.76,213.72,3.37812173]
[1758730526796,1.89106165,213.75,213.71,3.37812173]
[1758730527001,37.28,213.74,213.72,3.37812173]
[1758730527183,29.37812173,213.79,213.73,4.09812173]
[1758730527184,26.0,213.79,213.73,4.09812173]
[1758730527390,38.45116344,213.78,213.75,3.37812173]
[1758730527572,1.89116344,213.77,213.74,8.05670318]
[1758730528089,0.72,213.76,213.73,3.37812173]
[1758730528291,37.32,213.75,213.73,3.37812173]
[1758730528611,1.17128593,213.74,213.72,8.05697663]
[1758730529416,37.3,213.77,213.74,4.67858145]
[1758730529577,1.17121603,213.76,213.75,3.37812173]
[1758730530198,1.17121603,213.76,213.75,4.09812173]
[1758730530405,1.17117761,213.76,213.75,4.09812173]
[1758730530575,1.89117761,213.76,213.69,0.72]
[1758730530779,1.17117761,213.75,213.72,3.37812173]
[1758730530991,29.37812173,213.79,213.73,3.37812173]
[1758730530992,0.72,213.78,213.73,3.37812173]
[1758730531193,39.19119473,213.77,213.74,3.37812173]
[1758730531389,1.17119473,213.76,213.74,3.37812173]
[1758730531605,1.17119473,213.76,213.73,8.0567111]
[1758730532108,39.27119473,213.75,213.72,8.05710777]
[1758730532293,1.17119473,213.74,213.72,5.39898604]
[1758730532607,37.38,213.76,213.73,2.16009219]
[1758730532909,1.17126683,213.75,213.74,2.16009219]
[1758730533278,1.17126683,213.75,213.74,6.83867364]
[1758730533785,1.89126683,213.75,213.73,2.16009219]
[1758730534104,1.17126683,213.74,213.73,2.16009219]
[1758730534311,1.17126683,213.74,213.72,4.67901137]
[1758730534312,1.89126683,213.74,213.68,26.01486151]
[1758730534513,1.17126683,213.73,213.71,2.16009219]
[1758730534696,37.44,213.72,213.71,2.16009219]
[1758730534896,38.61126683,213.72,213.7,2.16009219]
[1758730535209,37.44,213.72,213.71,2.16009219]
[1758730535392,38.61137856,213.72,213.7,6.83944417]
[1758730535590,1.17139736,213.71,213.7,6.83944417]
[1758730536011,1.17139749,213.71,213.7,6.83944417]
[1758730536186,1.17139749,213.71,213.69,6.83973829]
[1758730536593,37.44,213.72,213.7,2.16009219]
[1758730536794,0.72,213.76,213.71,2.16009219]
[1758730537086,38.5913034,213.75,213.72,2.16009219]
[1758730537300,1.1713034,213.74,213.72,2.16009219]
[1758730537504,1.1713034,213.73,213.72,6.83911146]
[1758730537688,1.1713034,213.74,213.72,4.67901927]
[1758730537906,1.1713034,213.73,213.7,2.16009219]
[1758730538215,1.1713034,213.72,213.71,4.67920129]
[1758730538585,1.1713034,213.74,213.71,4.67920129]
[1758730538785,1.1713034,213.73,213.71,4.67920129]
[1758730539024,1.1713034,213.72,213.71,4.67920129]
[1758730539391,1.1713034,213.74,213.71,4.67920129]
[1758730539589,1.1713034,213.73,213.7,6.83950983]
[1758730539793,1.1713034,213.72,213.7,6.83950983]
[1758730539992,161.32,213.78,213.71,2.88009219]
[1758730540290,38.55133161,213.77,213.73,2.16009219]
[1758730540491,1.17133161,213.76,213.73,2.88009219]
[1758730540700,37.38,213.77,213.75,2.16009219]
[1758730540895,1.17114768,213.76,213.75,0.72]
[1758730541609,1.17114768,213.76,213.75,5.39836257]
[1758730542210,37.38,213.79,213.75,19.25436119]
[1758730542401,37.38,213.79,213.78,2.16009219]
[1758730542583,1.17091388,213.79,213.78,15.7556862]
[1758730542896,37.38,213.82,213.78,16.4756862]
[1758730543092,1.17082167,213.81,213.79,0.72]
[1758730543413,16.35819778,213.96,213.8,13.59559401]
[1758730543596,0.72,213.91,213.83,16.36814291]
[1758730543794,1.17067471,213.9,213.84,14.31559401]
[1758730544110,37.44,213.93,213.85,0.72]
[1758730544409,1.17039111,213.92,213.91,2.16009219]
[1758730544814,1.17039111,213.92,213.84,13.59559401]
[1758730544985,1.17039111,213.92,213.88,2.16009219]
[1758730544986,1.17039111,213.91,213.88,2.16009219]
[1758730545194,1.17039111,213.9,213.88,2.16009219]
[1758730545403,1.17039111,213.89,213.86,13.59559401]
[1758730545713,0.72,213.92,213.87,4.67573759]
[1758730545900,1.1704906,213.91,213.87,4.67573759]
[1758730546104,1.1704906,213.9,213.87,4.67573759]
[1758730546418,0.72,213.92,213.87,4.67573759]
[1758730546606,1.89042638,213.92,213.89,2.16009219]
[1758730547417,0.72,213.91,213.88,2.16009219]
[1758730547794,0.72,213.9,213.88,2.16009219]
[1758730548409,0.72,213.9,213.87,4.67572665]
[1758730548410,0.72,213.9,213.89,2.16009219]
[1758730549007,0.72,213.9,213.87,2.16009219]
[1758730549324,38.16,213.89,213.86,2.16009219]
[1758730549519,38.16,213.89,213.87,2.16009219]
[1758730549700,38.16,213.89,213.83,13.59559401]
[1758730549701,0.72,213.88,213.86,2.16009219]
[1758730550031,134.6,213.87,213.85,2.16009219]
[1758730550319,37.44,213.89,213.83,4.67642824]
[1758730550320,134.6,213.86,213.84,2.16009219]
[1758730550509,134.6,213.86,213.83,4.67642824]
[1758730550510,134.6,213.86,213.83,6.83652043]
[1758730551110,37.42,213.85,213.83,2.16009219]
[1758730551511,37.42,213.85,213.83,6.83662695]
[1758730552921,37.42,213.85,213.84,2.83009219]
[1758730553238,134.6,213.86,213.85,13.59559401]
[1758730553531,134.6,213.86,213.85,16.4256862]
[1758730553900,37.4,213.9,213.86,4.67595623]
[1758730554114,37.4,213.9,213.87,2.16009219]
[1758730554325,38.06,213.9,213.87,2.16009219]
[1758730554630,0.66,213.89,213.85,2.16009219]
[1758730554802,0.66,213.89,213.83,13.59559401]
[1758730555122,0.66,213.89,213.85,2.16009219]
[1758730555425,37.4,213.9,213.83,29.96373692]
[1758730555426,37.4,213.9,213.87,2.16009219]
[1758730555829,38.06,213.9,213.87,2.16009219]
[1758730556556,38.06,213.9,213.86,6.83595656]
[1758730556914,38.06,213.9,213.86,4.67586437]
[1758730557306,38.06,213.9,213.86,6.83595656]
[1758730557826,38.06,213.9,213.86,4.67586437]
[1758730558129,38.06,213.9,213.85,2.16009219]
[1758730558833,38.06,213.9,213.85,2.83009219]
[1758730559052,38.06,213.9,213.85,2.16009219]
[1758730560030,0.68,213.89,213.86,4.67595623]
[1758730560208,37.4,213.9,213.86,6.83604842]
[1758730560532,134.6,213.89,213.87,2.88009219]
[1758730560914,134.6,213.89,213.88,2.16009219]
[1758730561129,0.88,213.97,213.89,13.59559401]
[1758730561349,37.32,213.96,213.93,2.16009219]
[1758730562245,37.32,213.96,213.94,4.67420772]
[1758730563138,1.17008365,213.95,213.94,4.67420772]
[1758730564111,1.17008365,213.95,213.92,2.16009219]
[1758730564316,0.88,213.97,213.93,0.72]
[1758730564317,0.2,213.97,213.93,0.72]
[1758730564546,0.2,213.97,213.94,14.31559401]
[1758730564834,0.2,213.97,213.94,2.16009219]
[1758730565011,0.2,213.97,213.91,13.59559401]
[1758730565012,0.68,213.96,213.91,13.59559401]
[1758730565205,1.16983454,213.95,213.91,2.16009219]
[1758730565409,1.84983454,213.94,213.9,4.67508181]
[1758730565617,1.84983454,213.93,213.89,6.83537461]
[1758730565815,1.16983454,213.92,213.89,6.83537461]
[1758730566035,1.16983454,213.91,213.89,6.83537461]
[1758730566227,38.12,213.95,213.9,2.16009219]
[1758730566421,1.17029282,213.94,213.9,2.16009219]
[1758730566730,1.17029282,213.93,213.92,2.16009219]
[1758730568131,1.17029282,213.93,213.92,6.83473691]
[1758730568317,1.17029282,213.94,213.92,6.83473691]
[1758730568516,1.17029282,213.93,213.92,7.55473691]
[1758730568728,0.2,213.97,213.92,32.83694273]
[1758730568930,0.2,213.97,213.96,2.16009219]
[1758730569118,1.3699755,213.97,213.96,2.16009219]
[1758730570113,0.2,213.97,213.96,7.55386298]
[1758730570310,0.2,213.97,213.96,21.14945699]
[1758730571319,0.2,213.97,213.96,21.14945699]
[1758730571524,1e-08,213.98,213.97,13.59559401]
[1758730571731,1e-08,213.98,213.96,4.67377079]
[1758730571938,1e-08,213.98,213.97,2.88009219]
[1758730572434,0.2,214.01,213.98,13.59559401]
[1758730572435,1e-08,214.01,213.98,13.59559401]
[1758730572614,1e-08,214.01,214.0,15.7556862]
[1758730572812,1e-08,214.01,213.97,42.35743327]
[1758730572813,1.16966175,214.01,213.97,4.67355236]
[1758730573020,1.84966174,214.0,213.97,6.83364455]
[1758730573233,1.16966174,213.99,213.97,6.83364455]
[1758730573433,1.16966174,213.98,213.97,6.83364455]
[1758730573830,1.84966174,213.98,213.91,4.67486326]
[1758730574030,1.84966174,213.97,213.93,2.16009219]
[1758730574337,1.84966174,213.96,213.93,2.16009219]
[1758730574516,1.85015122,213.95,213.93,2.16009219]
[1758730574711,1.85015122,213.94,213.91,2.16009219]
[1758730574940,1.17015122,213.93,213.91,2.16009219]
[1758730575120,1.17015122,213.92,213.91,2.16009219]
[1758730575521,1.17015122,213.93,213.91,2.16009219]
[1758730575828,1.17015122,213.92,213.91,2.16009219]
[1758730576224,1.85015122,213.92,213.86,13.59559401]
[1758730576425,1.17015122,213.91,213.87,2.16009219]
[1758730576728,1.17015122,213.9,213.86,6.83604842]
[1758730577040,1.17015122,213.89,213.86,6.83604842]
[1758730577231,1.17015122,213.88,213.86,6.83604842]
[1758730577434,0.68,213.9,213.86,6.83604842]
[1758730577735,1.17042685,213.89,213.86,6.83604842]
[1758730577937,1.17042685,213.88,213.86,6.83604842]
[1758730578139,0.68,213.9,213.86,6.83604842]
[1758730578329,1.17041486,213.89,213.86,6.83604842]
[1758730578528,0.68,213.9,213.86,6.83604842]
[1758730578529,1.17041852,213.88,213.87,2.16009219]
[1758730578726,1.17041852,213.89,213.87,2.16009219]
[1758730578932,1.17041852,213.88,213.87,2.16009219]
[1758730579144,1.85041852,213.88,213.86,4.67595623]
[1758730579343,1.85041852,213.87,213.84,4.67617937]
[1758730579542,0.68,213.87,213.84,6.83627156]
[1758730579724,39.54009219,213.91,213.82,18.27231133]
[1758730579725,4.67511957,213.9,213.82,18.27231133]
[1758730580043,1.85057618,213.89,213.84,2.16009219]
[1758730580242,1.85057618,213.88,213.84,2.16009219]
[1758730580445,1.17057618,213.87,213.82,29.96438877]
[1758730580623,26.0,213.91,213.87,2.16009219]
[1758730580944,1.17048218,213.9,213.87,2.16009219]
[1758730581248,1.17048218,213.9,213.85,2.16009219]
[1758730581249,0.69,213.89,213.85,2.16009219]
[1758730581622,0.69,213.88,213.85,2.16009219]
[1758730581821,1.17048218,213.9,213.85,2.16009219]
[1758730582045,0.69,213.89,213.85,2.16009219]
[1758730582233,0.69,213.89,213.86,4.67595623]
[1758730582548,0.69,213.88,213.83,6.83670445]
[1758730582749,0.69,213.87,213.82,4.67681192]
[1758730582946,0.69,213.86,213.82,4.67681192]
[1758730583330,0.69,213.86,213.82,6.83690411]
[1758730583553,0.69,213.89,213.83,2.16009219]
[1758730583735,1.17057507,213.88,213.83,2.16009219]
[1758730583935,1.86057507,213.88,213.83,2.16009219]
[1758730584136,1.17057507,213.87,213.84,0.69]
[1758730584334,37.3,213.89,213.87,4.67573759]
[1758730584649,1.17055756,213.88,213.87,4.67573759]
[1758730585152,1.17055756,213.88,213.87,7.52582978]
[1758730585358,0.69,213.97,213.88,13.59559401]
[1758730585657,32.87033885,213.96,213.92,2.16009219]
[1758730585955,1.17033885,213.95,213.94,2.16009219]
[1758730586130,1e-08,214.01,213.94,16.4456862]
[1758730586450,1.16995435,214.0,213.98,4.67333395]
[1758730586620,1.16995435,213.99,213.98,4.67333395]
[1758730587926,1.16995435,213.99,213.97,4.67355236]
[1758730588128,1.16995435,213.98,213.97,4.67355236]
[1758730591146,1.16995435,213.98,213.97,6.83364455]
[1758730592535,1.16995435,214.0,213.97,6.83364455]
[1758730592742,1.16995435,213.99,213.98,0.69]
[1758730592943,1e-08,214.01,213.99,13.59559401]
[1758730593248,1e-08,214.01,214.0,2.16009219]
[1758730593546,1e-08,214.01,214.0,2.85009219]
[1758730593727,1e-08,214.01,214.0,16.4456862]
[1758730594330,1e-08,214.01,214.0,21.11858339]
[1758730594560,1e-08,214.01,214.0,22.32404959]
[1758730596929,1e-08,214.01,214.0,18.2684912]
[1758730597263,1e-08,214.01,214.0,21.63404959]
[1758730598170,1e-08,214.01,213.95,1.87305378]
[1758730598374,1e-08,214.01,213.96,3.36555839]
[1758730598375,0.69,214.0,213.96,3.36555839]
[1758730598554,0.69,213.99,213.96,3.36555839]
[1758730598874,0.69,213.98,213.95,4.67398172]
[1758730599078,0.69,213.97,213.95,4.67398172]
[1758730599369,0.69,213.97,213.91,0.69]
[1758730599370,0.69,213.97,213.94,4.6742066]
[1758730599666,1.169642,213.98,213.95,4.05555839]
[1758730599867,37.89000001,214.01,213.96,3.36555839]
[1758730600168,0.69,214.0,213.96,3.36555839]
[1758730600665,0.69,214.0,213.97,4.67355236]
[1758730600856,0.69,213.99,213.97,4.67355236]
[1758730601860,0.69,213.98,213.95,4.67386507]
[1758730602062,0.69,213.97,213.95,4.67386507]
[1758730602573,0.69,213.99,213.95,4.67386507]
[1758730602761,0.69,213.98,213.95,4.67386507]
[1758730603877,38.3099753,214.0,213.96,3.36555839]
[1758730604058,37.83,214.0,213.95,16.35883819]
[1758730604256,0.69,213.99,213.95,4.67386507]
[1758730604580,8.72898897,213.98,213.89,0.69]
[1758730604779,3.36555839,213.96,213.9,3.36555839]
[1758730604958,1.8599713,213.95,213.9,3.36555839]
[1758730605159,37.83,213.94,213.9,3.36555839]
[1758730605676,37.14,213.94,213.9,3.36555839]
[1758730605977,37.14,213.95,213.91,3.36555839]
[1758730606266,0.69,213.94,213.91,3.36555839]
[1758730606649,0.69,213.94,213.88,4.67549141]
[1758730606650,0.69,213.93,213.88,4.67549141]
[1758730606849,0.69,213.92,213.86,3.36555839]
[1758730607065,1.86028252,213.92,213.88,3.36555839]
[1758730607261,0.69,213.92,213.88,3.36555839]
[1758730607866,1.17038587,213.93,213.89,3.36555839]
[1758730608052,41.19555839,213.95,213.89,3.36555839]
[1758730608253,1.17033376,213.94,213.89,3.36555839]
[1758730608458,37.14,213.93,213.89,3.36555839]
[1758730608670,3.36555839,213.96,213.9,4.67508181]
[1758730608875,38.29025073,213.95,213.9,8.7306402]
[1758730609098,3.36555839,213.96,213.9,8.7306402]
[1758730609278,0.69,213.97,213.9,8.0406402]
[1758730609279,37.12,213.94,213.9,8.0406402]
[1758730609776,0.69,213.93,213.9,4.67508181]
[1758730610650,40.48555839,213.94,213.89,18.27089439]
[1758730610855,41.19555839,213.94,213.89,18.27089439]
[1758730611077,4.07555839,213.94,213.89,18.27089439]
[1758730611378,4.07555839,213.94,213.89,4.67530038]
[1758730611379,0.71,213.93,213.89,4.67530038]
[1758730612275,37.12,213.94,213.89,4.67530038]
[1758730612464,4.07555839,213.93,213.88,4.67550058]
[1758730612665,4.07555839,213.92,213.88,4.67550058]
[1758730612877,4.07555839,213.92,213.87,4.67573759]
[1758730613682,0.71,213.92,213.87,19.73063997]
[1758730613867,41.19555839,213.94,213.88,3.36555839]
[1758730614071,37.83,213.94,213.88,3.36555839]